fUSD/lending_fUSD_20240518
["ID","MTS","AMOUNT","RATE_DAILY","PERIOD"]
[327392960,1716040258700,-500.0,0.00028219,2]
[327392961,1716040258710,-5056.19,0.00028219,2]
[327392962,1716040258720,-500.0,0.00028219,2]
[327392963,1716040258729,-500.0,0.00028219,2]
[327392964,1716040258740,-1772.22,0.00028219,2]
[327392965,1716040258750,-4278.55,0.00028219,2]
[327392966,1716040258760,-500.0,0.00028219,2]
[327392967,1716040258770,-500.0,0.00028219,2]
[327392968,1716040258779,-596.82,0.00028219,2]
[327392969,1716040258788,-698.31,0.00028219,2]
[327392970,1716040258797,-500.0,0.00028219,2]
[327392971,1716040258807,-2025.92,0.00028219,2]
[327392972,1716040258816,-500.0,0.00028219,2]
[327392973,1716040258826,-500.0,0.00028219,2]
[327392974,1716040258835,-500.0,0.00028219,2]
[327392975,1716040258845,-500.0,0.00028464,2]
[327392976,1716040258855,-500.0,0.00028493,2]
[327392977,1716040258869,-500.0,0.00028493,2]
[327392978,1716040258878,-500.0,0.00028493,2]
[327392979,1716040258887,-500.0,0.00028493,2]
[327392980,1716040258897,-500.0,0.00028493,2]
[327392981,1716040258907,-500.0,0.00028493,2]
[327392982,1716040258916,-500.0,0.00028493,2]
[327392983,1716040258975,-500.0,0.00028493,2]
[327392984,1716040258986,-500.0,0.00028493,2]
[327392985,1716040258994,-500.0,0.00028493,2]
[327392986,1716040259003,-500.0,0.00028493,2]
[327392987,1716040259012,-500.0,0.00028493,2]
[327392988,1716040259021,-500.0,0.00028493,2]
[327392989,1716040259030,-500.0,0.00028493,2]
[327392990,1716040259040,-169.31972496,0.00028493,2]
[327392991,1716040259049,-500.0,0.00028493,2]
[327392992,1716040259058,-500.0,0.00028493,2]
[327392993,1716040259067,-500.0,0.00028493,2]
[327392994,1716040259076,-500.0,0.00028493,2]
[327392995,1716040259085,-507.06,0.00028493,2]
[327392996,1716040259094,-500.0,0.00028493,2]
[327392997,1716040259104,-2059.56,0.00028493,2]
[327392998,1716040259114,-583.83,0.00028493,2]
[327392999,1716040259123,-2875.29,0.00028493,2]
[327393000,1716040259134,-564.42,0.00028493,2]
[327393001,1716040259143,-500.0,0.00028493,2]
[327393002,1716040259152,-500.0,0.00028493,2]
[327393003,1716040259162,-500.0,0.00028493,2]
[327393004,1716040259171,-500.0,0.00028493,2]
[327393005,1716040259180,-500.0,0.00028493,2]
[327393006,1716040259189,-500.0,0.00028493,2]
[327393007,1716040259198,-500.0,0.00028493,2]
[327393008,1716040259207,-500.0,0.00028493,2]
[327393009,1716040259216,-502.26,0.00028493,2]
[327393010,1716040259225,-500.0,0.00028493,2]
[327393011,1716040259235,-522.68,0.00028493,2]
[327393012,1716040259244,-2660.98,0.00028493,2]
[327393013,1716040259253,-500.0,0.00028493,2]
[327393014,1716040259262,-500.0,0.00028493,2]
[327393015,1716040259271,-258.70376133,0.00028493,2]
[327393016,1716040259280,-500.0,0.00028493,2]
[327393017,1716040259289,-500.0,0.00028493,2]
[327393018,1716040259298,-1098.65,0.00028493,2]
[327393019,1716040259307,-500.0,0.00028493,2]
[327393020,1716040259317,-500.0,0.00028493,2]
[327393021,1716040259326,-670.06,0.00028493,2]
[327393022,1716040259335,-500.0,0.00028493,2]
[327393023,1716040259344,-526.97,0.00028493,2]
[327393024,1716040259353,-500.0,0.00028493,2]
[327393025,1716040259362,-1180.45,0.00028493,2]
[327393026,1716040259371,-2140.28,0.00028493,2]
[327393027,1716040259380,-270.17315029,0.00028493,2]
[327393028,1716040259389,-500.0,0.00028493,2]
[327393029,1716040259398,-1792.29,0.00028493,2]
[327393030,1716040259407,-500.0,0.00028493,2]
[327393031,1716040259416,-754.09,0.00028493,2]
[327393032,1716040259425,-500.0,0.00028493,2]
[327393033,1716040259435,-1739.94,0.00028493,2]
[327393034,1716040259444,-151.66425985,0.00028493,2]
[327393035,1716040259453,-500.0,0.00028493,2]
[327393036,1716040259462,-500.0,0.00028493,2]
[327393037,1716040259471,-500.0,0.00028493,2]
[327393038,1716040259481,-2203.95,0.00028493,2]
[327393039,1716040259493,-500.0,0.00028493,2]
[327393040,1716040259503,-500.0,0.00028493,2]
[327393041,1716040259512,-500.0,0.00028493,2]
[327393042,1716040259521,-500.0,0.00028493,2]
[327393043,1716040259531,-500.0,0.00028493,2]
[327393044,1716040259540,-523.71089806,0.00028493,2]
[327393045,1716040259549,-500.0,0.00028493,2]
[327393046,1716040259558,-626.93,0.00028493,2]
[327393047,1716040259568,-500.0,0.00028493,2]
[327393048,1716040259578,-500.0,0.00028493,2]
[327393049,1716040259587,-500.0,0.00028493,2]
[327393050,1716040259596,-500.0,0.00028493,2]
[327393051,1716040259606,-500.0,0.00028493,2]
[327393052,1716040259615,-500.0,0.00028493,2]
[327393053,1716040259624,-2589.11,0.00028493,2]
[327393054,1716040259633,-2196.61,0.00028493,2]
[327393055,1716040259643,-843.12,0.00028493,2]
[327393056,1716040259652,-1927.98,0.00028493,2]
[327393057,1716040259661,-500.0,0.00028493,2]
[327393058,1716040259670,-500.0,0.00028493,2]
[327393059,1716040259678,-500.0,0.00028493,2]
[327393060,1716040259687,-2339.68,0.00028493,2]
[327393061,1716040259696,-500.0,0.00028493,2]
[327393062,1716040259706,-500.0,0.00028493,2]
[327393063,1716040259715,-611.84119532,0.00028493,2]
[327393064,1716040259725,-500.0,0.00028493,2]
[327393065,1716040259736,-952.74,0.00028493,2]
[327393066,1716040259746,-500.0,0.00028493,2]
[327393067,1716040259755,-500.0,0.00028493,2]
[327393068,1716040259764,-700.22,0.00028493,2]
[327393069,1716040259774,-500.0,0.00028493,2]
[327393070,1716040259783,-500.0,0.00028493,2]
[327393071,1716040259792,-500.0,0.00028493,2]
[327393072,1716040259801,-500.0,0.00028493,2]
[327393073,1716040259811,-500.0,0.00028493,2]
[327393074,1716040259820,-500.0,0.00028493,2]
[327393075,1716040259830,-500.0,0.00028493,2]
[327393076,1716040259838,-1204.38,0.00028493,2]
[327393077,1716040259848,-500.0,0.00028493,2]
[327393078,1716040259858,-578.65,0.00028493,2]
[327393079,1716040259872,-1353.98,0.00028493,2]
[327393080,1716040259881,-261.58381036,0.00028493,2]
[327393081,1716040259891,-500.0,0.00028493,2]
[327393082,1716040259900,-500.0,0.00028493,2]
[327393083,1716040259910,-500.0,0.00028493,2]
[327393084,1716040259919,-500.0,0.00028493,2]
[327393085,1716040259928,-180.46,0.00028493,2]
[327393086,1716040259937,-500.0,0.00028493,2]
[327393087,1716040259949,-210.24962429,0.00028493,2]
[327393088,1716040259959,-500.0,0.00028493,2]
[327393089,1716040259968,-500.0,0.00028493,2]
[327393090,1716040259977,-500.0,0.00028493,2]
[327393091,1716040259987,-356.58853798,0.00028493,2]
[327393092,1716040259996,-500.0,0.00028493,2]
[327393093,1716040260005,-327.78479418,0.00028493,2]
[327393094,1716040260015,-1233.38,0.00028493,2]
[327393095,1716040260025,-500.0,0.00028493,2]
[327393096,1716040260034,-500.0,0.00028493,2]
[327393097,1716040260043,-647.86,0.00028493,2]
[327393098,1716040260052,-3001.93,0.00028493,2]
[327393099,1716040260061,-500.0,0.00028493,2]
[327393100,1716040260071,-500.0,0.00028493,2]
[327393101,1716040260080,-1093.23,0.00028493,2]
[327393102,1716040260090,-500.0,0.00028493,2]
[327393103,1716040260098,-500.0,0.00028493,2]
[327393104,1716040260108,-500.0,0.00028493,2]
[327393105,1716040260117,-544.14,0.00028493,2]
[327393106,1716040260126,-500.0,0.00028493,2]
[327393107,1716040260135,-500.0,0.00028493,2]
[327393108,1716040260145,-500.0,0.00028493,2]
[327393109,1716040260154,-1402.06,0.00028493,2]
[327393110,1716040260162,-959.13,0.00028493,2]
[327393111,1716040260172,-500.0,0.00028493,2]
[327393112,1716040260181,-500.0,0.00028493,2]
[327393113,1716040260190,-500.0,0.00028493,2]
[327393114,1716040260199,-500.0,0.00028493,2]
[327393115,1716040260208,-500.0,0.00028493,2]
[327393116,1716040260218,-500.0,0.00028493,2]
[327393117,1716040260228,-500.0,0.00028493,2]
[327393118,1716040260239,-500.0,0.00028493,2]
[327393119,1716040260249,-500.0,0.00028493,2]
[327393120,1716040260258,-500.0,0.00028493,2]
[327393121,1716040260267,-3017.04,0.00028493,2]
[327393122,1716040260276,-500.0,0.00028493,2]
[327393123,1716040260286,-533.05,0.00028493,2]
[327393124,1716040260295,-500.0,0.00028493,2]
[327393125,1716040260305,-500.0,0.00028493,2]
[327393126,1716040260314,-1788.12,0.00028493,2]
[327393127,1716040260324,-500.0,0.00028493,2]
[327393128,1716040260333,-500.0,0.00028493,2]
[327393129,1716040260343,-500.0,0.00028493,2]
[327393130,1716040260353,-980.4,0.00028493,2]
[327393131,1716040260362,-428.46,0.00028493,2]
[327393132,1716040260371,-714.06,0.00028493,2]
[327393133,1716040260380,-500.0,0.00028493,2]
[327393134,1716040260389,-254.25530691,0.00028493,2]
[327393135,1716040260399,-500.0,0.00028493,2]
[327393136,1716040260408,-915.26,0.00028493,2]
[327393137,1716040260417,-500.0,0.00028493,2]
[327393138,1716040260427,-2281.2,0.00028493,2]
[327393139,1716040260435,-500.0,0.00028493,2]
[327393140,1716040260445,-505.54093327,0.00028493,2]
[327393141,1716040260454,-969.27,0.00028493,2]
[327393142,1716040260463,-500.0,0.00028493,2]
[327393143,1716040260472,-1067.09,0.00028493,2]
[327393144,1716040260482,-1797.23,0.00028493,2]
[327393145,1716040260493,-608.02163739,0.00028493,2]
[327393146,1716040260502,-1506.83,0.00028493,2]
[327393147,1716040260511,-737.86,0.00028493,2]
[327393148,1716040260521,-500.0,0.00028493,2]
[327393149,1716040260531,-625.58,0.00028493,2]
[327393150,1716040260540,-397.49057406,0.00028493,2]
[327393151,1716040260549,-500.0,0.00028493,2]
[327393152,1716040260560,-500.0,0.00028493,2]
[327393153,1716040260570,-500.0,0.00028493,2]
[327393154,1716040260580,-500.0,0.00028493,2]
[327393155,1716040260588,-3336.88,0.00028493,2]
[327393156,1716040260597,-6913.64,0.00028493,2]
[327393157,1716040260606,-709.55,0.00028493,2]
[327393158,1716040260616,-794.08,0.00028493,2]
[327393159,1716040260625,-500.0,0.00028493,2]
[327393160,1716040260635,-2267.04,0.00028493,2]
[327393161,1716040260644,-500.0,0.00028493,2]
[327393162,1716040260653,-5959.23,0.00028493,2]
[327393163,1716040260662,-500.0,0.00028493,2]
[327393164,1716040260671,-500.0,0.00028493,2]
[327393165,1716040260680,-586.84,0.00028493,2]
[327393166,1716040260689,-840.47,0.00028493,2]
[327393167,1716040260699,-2092.24,0.00028493,2]
[327393168,1716040260709,-500.0,0.00028493,2]
[327393169,1716040260719,-594.07,0.00028493,2]
[327393170,1716040260728,-348.90726403,0.00028493,2]
[327393171,1716040260738,-500.0,0.00028493,2]
[327393172,1716040260747,-500.0,0.00028493,2]
[327393173,1716040260756,-500.0,0.00028493,2]
[327393174,1716040260765,-732.23,0.00028493,2]
[327393175,1716040260775,-376.42,0.00028493,2]
[327393176,1716040260785,-500.0,0.00028493,2]
[327393177,1716040260794,-511.72,0.00028493,2]
[327393178,1716040260803,-735.33,0.00028493,2]
[327393179,1716040260813,-500.0,0.00028493,2]
[327393180,1716040260823,-500.0,0.00028493,2]
[327393181,1716040260832,-500.0,0.00028493,2]
[327393182,1716040260841,-500.0,0.00028493,2]
[327393183,1716040260851,-8945.82,0.00028493,2]
[327393184,1716040260860,-2493.68,0.00028493,2]
[327393185,1716040260873,-500.0,0.00028493,2]
[327393186,1716040260883,-500.0,0.00028493,2]
[327393187,1716040260893,-1410.43,0.00028493,2]
[327393188,1716040260902,-500.0,0.00028493,2]
[327393189,1716040260911,-1603.71,0.00028493,2]
[327393190,1716040260921,-500.0,0.00028493,2]
[327393191,1716040260930,-1234.82,0.00028493,2]
[327393192,1716040260940,-500.0,0.00028493,2]
[327393193,1716040260953,-500.0,0.00028493,2]
[327393194,1716040260963,-500.0,0.00028493,2]
[327393195,1716040260973,-964.54,0.00028493,2]
[327393196,1716040260982,-906.95,0.00028493,2]
[327393197,1716040260993,-500.0,0.00028493,2]
[327393198,1716040261002,-602.76124855,0.00028493,2]
[327393199,1716040261012,-2869.47,0.00028493,2]
[327393200,1716040261021,-643.98,0.00028493,2]
[327393201,1716040261030,-500.0,0.00028493,2]
[327393202,1716040261039,-500.0,0.00028493,2]
[327393203,1716040261049,-739.56,0.00028493,2]
[327393204,1716040261058,-1338.53,0.00028493,2]
[327393205,1716040261068,-500.0,0.00028493,2]
[327393206,1716040261077,-500.0,0.00028493,2]
[327393207,1716040261086,-561.33,0.00028493,2]
[327393208,1716040261096,-702.2,0.00028493,2]
[327393209,1716040261105,-586.07620289,0.00028493,2]
[327393210,1716040261114,-1386.7,0.00028493,2]
[327393211,1716040261123,-1490.89,0.00028493,2]
[327393212,1716040261134,-500.0,0.00028493,2]
[327393213,1716040261143,-500.0,0.00028493,2]
[327393214,1716040261155,-775.1,0.00028493,2]
[327393215,1716040261164,-935.89,0.00028493,2]
[327393216,1716040261174,-545.32,0.00028493,2]
[327393217,1716040261184,-500.0,0.00028493,2]
[327393218,1716040261194,-561.56,0.00028493,2]
[327393219,1716040261204,-500.0,0.00028493,2]
[327393220,1716040261213,-500.0,0.00028493,2]
[327393221,1716040261223,-500.0,0.00028493,2]
[327393222,1716040261233,-392.86031225,0.00028493,2]
[327393223,1716040261243,-500.0,0.00028493,2]
[327393224,1716040261253,-619.78,0.00028493,2]
[327393225,1716040261262,-621.39,0.00028493,2]
[327393226,1716040261272,-500.0,0.00028493,2]
[327393227,1716040261281,-500.0,0.00028493,2]
[327393228,1716040261290,-585.77,0.00028493,2]
[327393229,1716040261300,-3010.58,0.00028493,2]
[327393230,1716040261310,-3560.8,0.00028493,2]
[327393231,1716040261319,-500.0,0.00028493,2]
[327393232,1716040261328,-500.0,0.00028493,2]
[327393233,1716040261337,-599.07,0.00028493,2]
[327393234,1716040261346,-500.0,0.00028493,2]
[327393235,1716040261356,-500.0,0.00028493,2]
[327393236,1716040261365,-500.0,0.00028493,2]
[327393237,1716040261374,-3063.61,0.00028493,2]
[327393238,1716040261384,-500.0,0.00028493,2]
[327393239,1716040261393,-653.42,0.00028493,2]
[327393240,1716040261403,-814.87,0.00028493,2]
[327393241,1716040261412,-698.86,0.00028493,2]
[327393242,1716040261421,-1099.41,0.00028493,2]
[327393243,1716040261430,-500.0,0.00028493,2]
[327393244,1716040261439,-500.0,0.00028493,2]
[327393245,1716040261448,-1201.24,0.00028493,2]
[327393246,1716040261457,-500.0,0.00028493,2]
[327393247,1716040261466,-622.78,0.00028493,2]
[327393248,1716040261475,-556.2254731,0.00028493,2]
[327393249,1716040261484,-500.0,0.00028493,2]
[327393250,1716040261496,-500.0,0.00028493,2]
[327393251,1716040261506,-674.85,0.00028493,2]
[327393252,1716040261515,-656.56,0.00028493,2]
[327393253,1716040261525,-590.6,0.00028493,2]
[327393254,1716040261535,-500.0,0.00028493,2]
[327393255,1716040261545,-783.59,0.00028493,2]
[327393256,1716040261555,-1179.24,0.00028493,2]
[327393257,1716040261564,-874.12,0.00028493,2]
[327393258,1716040261574,-500.0,0.00028493,2]
[327393259,1716040261584,-500.0,0.00028493,2]
[327393260,1716040261593,-500.0,0.00028493,2]
[327393261,1716040261602,-558.78,0.00028493,2]
[327393262,1716040261612,-323.53470105,0.00028493,2]
[327393263,1716040261621,-2108.16,0.00028493,2]
[327393264,1716040261631,-1661.91,0.00028493,2]
[327393265,1716040261640,-666.13,0.00028493,2]
[327393266,1716040261650,-2781.87,0.00028493,2]
[327393267,1716040261659,-500.0,0.00028493,2]
[327393268,1716040261668,-500.0,0.00028493,2]
[327393269,1716040261679,-893.42,0.00028493,2]
[327393270,1716040261689,-1207.31,0.00028493,2]
[327393271,1716040261698,-500.0,0.00028493,2]
[327393272,1716040261707,-840.57,0.00028493,2]
[327393273,1716040261717,-1041.69,0.00028493,2]
[327393274,1716040261726,-1214.32,0.00028493,2]
[327393275,1716040261736,-1712.9,0.00028493,2]
[327393276,1716040261747,-500.0,0.00028493,2]
[327393277,1716040261757,-500.0,0.00028493,2]
[327393278,1716040261766,-561.36293254,0.00028493,2]
[327393279,1716040261776,-500.0,0.00028493,2]
[327393280,1716040261785,-2408.0,0.00028493,2]
[327393281,1716040261794,-1126.37,0.00028493,2]
[327393282,1716040261803,-614.77,0.00028493,2]
[327393283,1716040261812,-500.0,0.00028493,2]
[327393284,1716040261822,-500.76,0.00028493,2]
[327393285,1716040261831,-500.0,0.00028493,2]
[327393286,1716040261841,-500.0,0.00028493,2]
[327393287,1716040261850,-2250.78,0.00028493,2]
[327393288,1716040261860,-620.98,0.00028493,2]
[327393289,1716040261874,-500.0,0.00028493,2]
[327393290,1716040261883,-500.0,0.00028493,2]
[327393291,1716040261893,-827.43,0.00028493,2]
[327393292,1716040261902,-500.0,0.00028493,2]
[327393293,1716040261912,-1113.89,0.00028493,2]
[327393294,1716040261922,-1491.8,0.00028493,2]
[327393295,1716040261931,-500.0,0.00028493,2]
[327393296,1716040261944,-500.0,0.00028493,2]
[327393297,1716040261954,-500.0,0.00028493,2]
[327393298,1716040261964,-702.42,0.00028493,2]
[327393299,1716040261974,-854.23,0.00028493,2]
[327393300,1716040261984,-728.49,0.00028493,2]
[327393301,1716040261994,-1117.81,0.00028493,2]
[327393302,1716040262004,-500.0,0.00028493,2]
[327393303,1716040262013,-500.0,0.00028493,2]
[327393304,1716040262023,-500.0,0.00028493,2]
[327393305,1716040262033,-512.11,0.00028493,2]
[327393306,1716040262042,-500.0,0.00028493,2]
[327393307,1716040262051,-520.85,0.00028493,2]
[327393308,1716040262061,-500.0,0.00028493,2]
[327393309,1716040262071,-712.99,0.00028493,2]
[327393310,1716040262080,-500.0,0.00028493,2]
[327393311,1716040262090,-937.76,0.00028493,2]
[327393312,1716040262100,-760.52,0.00028493,2]
[327393313,1716040262110,-500.0,0.00028493,2]
[327393314,1716040262120,-500.0,0.00028493,2]
[327393315,1716040262130,-1038.61,0.00028493,2]
[327393316,1716040262139,-500.0,0.00028493,2]
[327393317,1716040262150,-506.85345486,0.00028493,2]
[327393318,1716040262160,-1229.83,0.00028493,2]
[327393319,1716040262170,-500.0,0.00028493,2]
[327393320,1716040262180,-3234.95,0.00028493,2]
[327393321,1716040262190,-1556.91,0.00028493,2]
[327393322,1716040262199,-500.0,0.00028493,2]
[327393323,1716040262209,-740.54,0.00028493,2]
[327393324,1716040262219,-906.41,0.00028493,2]
[327393325,1716040262228,-799.21,0.00028493,2]
[327393326,1716040262239,-603.91,0.00028493,2]
[327393327,1716040262251,-500.0,0.00028493,2]
[327393328,1716040262262,-1371.53,0.00028493,2]
[327393329,1716040262271,-7464.62,0.00028493,2]
[327393330,1716040262280,-4579.7,0.00028493,2]
[327393331,1716040262290,-703.41,0.00028493,2]
[327393332,1716040262299,-4120.53,0.00028493,2]
[327393333,1716040262309,-500.0,0.00028493,2]
[327393334,1716040262319,-500.0,0.00028493,2]
[327393335,1716040262329,-3200.63,0.00028493,2]
[327393336,1716040262340,-561.2889238,0.00028493,2]
[327393337,1716040262350,-5056.19,0.00028493,2]
[327393338,1716040262360,-500.0,0.00028493,2]
[327393339,1716040262371,-500.0,0.00028493,2]
[327393340,1716040262380,-151.0,0.00028493,7]
[327393341,1716040262390,-1772.22,0.00028493,2]
[327393342,1716040262400,-4278.55,0.00028493,2]
[327393343,1716040262409,-520.6652535,0.00028493,2]
[327393344,1716040262419,-500.0,0.00028493,2]
[327393345,1716040262429,-596.82,0.00028493,2]
[327393346,1716040262439,-698.31,0.00028493,2]
[327393347,1716040262449,-500.0,0.00028493,2]
[327393348,1716040262458,-2025.92,0.00028493,2]
[327393349,1716040262468,-500.0,0.00028493,2]
[327393350,1716040262478,-500.0,0.00028493,2]
[327393351,1716040262487,-500.0,0.00028493,2]
[327393352,1716040262500,-164.96,0.00028586,2]
[327393353,1716040262510,-302.62974303,0.00028667,2]
[327393354,1716040262519,-383.12135938,0.00028667,2]
[327393355,1716040262529,-3276.22363275,0.00028667,2]
[327393356,1716040262539,-500.0,0.00028766,2]
[327393357,1716040262549,-500.0,0.00028767,2]
[327393358,1716040262559,-500.0,0.00028767,2]
[327393359,1716040262568,-500.0,0.00028767,2]
[327393360,1716040262577,-628.50480649,0.00028767,2]
[327393361,1716040262587,-500.0,0.00028767,2]
[327393362,1716040262596,-500.0,0.00028767,2]
[327393363,1716040262606,-500.0,0.00028767,2]
[327393364,1716040262616,-500.0,0.00028767,2]
[327393365,1716040262626,-500.0,0.00028767,2]
[327393366,1716040262636,-500.0,0.00028767,2]
[327393367,1716040262646,-500.0,0.00028767,2]
[327393368,1716040262656,-500.0,0.00028767,2]
[327393369,1716040262666,-500.0,0.00028767,2]
[327393370,1716040262676,-500.0,0.00028767,2]
[327393371,1716040262686,-500.0,0.00028767,2]
[327393372,1716040262696,-500.0,0.00028767,2]
[327393373,1716040262705,-500.0,0.00028767,2]
[327393374,1716040262715,-500.0,0.00028767,2]
[327393375,1716040262725,-507.06,0.00028767,2]
[327393376,1716040262735,-500.0,0.00028767,2]
[327393377,1716040262748,-2059.56,0.00028767,2]
[327393378,1716040262758,-583.83,0.00028767,2]
[327393379,1716040262767,-2875.29,0.00028767,2]
[327393380,1716040262782,-564.42,0.00028767,2]
[327393381,1716040262791,-500.0,0.00028767,2]
[327393382,1716040262801,-500.0,0.00028767,2]
[327393383,1716040262811,-500.0,0.00028767,2]
[327393384,1716040262820,-500.0,0.00028767,2]
[327393385,1716040262830,-500.0,0.00028767,2]
[327393386,1716040262840,-500.0,0.00028767,2]
[327393387,1716040262850,-500.0,0.00028767,2]
[327393388,1716040262860,-500.0,0.00028767,2]
[327393389,1716040262875,-502.26,0.00028767,2]
[327393390,1716040262885,-500.0,0.00028767,2]
[327393391,1716040262895,-522.68,0.00028767,2]
[327393392,1716040262908,-2660.98,0.00028767,2]
[327393393,1716040262918,-500.0,0.00028767,2]
[327393394,1716040262928,-500.0,0.00028767,2]
[327393395,1716040262938,-500.0,0.00028767,2]
[327393396,1716040262950,-500.0,0.00028767,2]
[327393397,1716040262959,-1098.65,0.00028767,2]
[327393398,1716040262969,-500.0,0.00028767,2]
[327393399,1716040262979,-500.0,0.00028767,2]
[327393400,1716040262988,-670.06,0.00028767,2]
[327393401,1716040263000,-500.0,0.00028767,2]
[327393402,1716040263010,-526.97,0.00028767,2]
[327393403,1716040263020,-500.0,0.00028767,2]
[327393404,1716040263031,-1180.45,0.00028767,2]
[327393405,1716040263041,-2140.28,0.00028767,2]
[327393406,1716040263216,-500.0,0.00028767,2]
[327393407,1716040263226,-1792.29,0.00028767,2]
[327393408,1716040263236,-500.0,0.00028767,2]
[327393409,1716040263248,-754.09,0.00028767,2]
[327393410,1716040263258,-500.0,0.00028767,2]
[327393411,1716040263267,-1739.94,0.00028767,2]
[327393412,1716040263276,-500.0,0.00028767,2]
[327393413,1716040263286,-500.0,0.00028767,2]
[327393414,1716040263295,-500.0,0.00028767,2]
[327393415,1716040263304,-2203.95,0.00028767,2]
[327393416,1716040263313,-500.0,0.00028767,2]
[327393417,1716040263323,-500.0,0.00028767,2]
[327393418,1716040263332,-500.0,0.00028767,2]
[327393419,1716040263342,-500.0,0.00028767,2]
[327393420,1716040263351,-500.0,0.00028767,2]
[327393421,1716040263360,-500.0,0.00028767,2]
[327393422,1716040263369,-626.93,0.00028767,2]
[327393423,1716040263378,-500.0,0.00028767,2]
[327393424,1716040263388,-500.0,0.00028767,2]
[327393425,1716040263398,-500.0,0.00028767,2]
[327393426,1716040263407,-500.0,0.00028767,2]
[327393427,1716040263417,-500.0,0.00028767,2]
[327393428,1716040263426,-500.0,0.00028767,2]
[327393429,1716040263435,-2589.11,0.00028767,2]
[327393430,1716040263444,-2196.61,0.00028767,2]
[327393431,1716040263455,-843.12,0.00028767,2]
[327393432,1716040263464,-1927.98,0.00028767,2]
[327393433,1716040263474,-500.0,0.00028767,2]
[327393434,1716040263483,-500.0,0.00028767,2]
[327393435,1716040263494,-500.0,0.00028767,2]
[327393436,1716040263503,-2339.68,0.00028767,2]
[327393437,1716040263513,-500.0,0.00028767,2]
[327393438,1716040263523,-500.0,0.00028767,2]
[327393439,1716040263533,-500.0,0.00028767,2]
[327393440,1716040263543,-952.74,0.00028767,2]
[327393441,1716040263552,-500.0,0.00028767,2]
[327393442,1716040263562,-500.0,0.00028767,2]
[327393443,1716040263572,-700.22,0.00028767,2]
[327393444,1716040263581,-500.0,0.00028767,2]
[327393445,1716040263591,-500.0,0.00028767,2]
[327393446,1716040263601,-500.0,0.00028767,2]
[327393447,1716040263610,-500.0,0.00028767,2]
[327393448,1716040263621,-500.0,0.00028767,2]
[327393449,1716040263631,-500.0,0.00028767,2]
[327393450,1716040263640,-500.0,0.00028767,2]
[327393451,1716040263650,-1204.38,0.00028767,2]
[327393452,1716040263660,-500.0,0.00028767,2]
[327393453,1716040263670,-578.65,0.00028767,2]
[327393454,1716040263680,-1353.98,0.00028767,2]
[327393455,1716040263690,-540.4891001,0.00028767,2]
[327393456,1716040263700,-500.0,0.00028767,2]
[327393457,1716040263710,-422.86825219,0.00028767,2]
[327393458,1716040263720,-500.0,0.00028767,2]
[327393459,1716040263729,-180.46,0.00028767,2]